fUSD/lending_fUSD_20241024
["ID","MTS","AMOUNT","RATE_DAILY","PERIOD"]
[340756092,1729779079683,-790.99,0.00065999,120]
[340756093,1729779079693,-790.99,0.00065999,120]
[340756094,1729779079703,-791.11328148,0.00065999,120]
[340756095,1729779079712,-500.0,0.00065999,120]
[340756096,1729779079722,-500.0,0.00065999,120]
[340756097,1729779079731,-500.0,0.00065999,120]
[340756098,1729779079741,-500.0,0.00065999,120]
[340756099,1729779079751,-891.22,0.00065999,120]
[340756100,1729779079760,-891.22,0.00065999,120]
[340756101,1729779079770,-891.22,0.00065999,120]
[340756102,1729779079782,-891.22,0.00065999,120]
[340756103,1729779079791,-891.22,0.00065999,120]
[340756104,1729779079800,-1877.06,0.00065999,120]
[340756105,1729779079810,-891.22,0.00065999,120]
[340756106,1729779079820,-891.22,0.00065999,120]
[340756107,1729779079829,-891.3468058,0.00065999,120]
[340756108,1729779079839,-1877.06,0.00065999,120]
[340756109,1729779079848,-699.62,0.00065999,120]
[340756110,1729779079858,-699.62,0.00065999,120]
[340756111,1729779079867,-2391.9,0.00065999,120]
[340756112,1729779079876,-2391.9,0.00065999,120]
[340756113,1729779079886,-500.0,0.00065999,120]
[340756114,1729779079895,-500.0,0.00065999,120]
[340756115,1729779079904,-3644.9,0.00065999,120]
[340756116,1729779079913,-3644.9,0.00065999,120]
[340756117,1729779079923,-3644.9,0.00065999,120]
[340756118,1729779079932,-3644.9,0.00065999,120]
[340756119,1729779079941,-3644.9,0.00065999,120]
[340756120,1729779079951,-3644.9,0.00065999,120]
[340756121,1729779079960,-3644.9,0.00065999,120]
[340756122,1729779079970,-3644.9,0.00065999,120]
[340756123,1729779079979,-3644.96852057,0.00065999,120]
[340756124,1729779079989,-2867.43,0.00065999,120]
[340756125,1729779079998,-2867.43,0.00065999,120]
[340756126,1729779080008,-2867.43,0.00065999,120]
[340756127,1729779080017,-1478.08722793,0.00065999,120]
[340756128,1729779080031,-933.86,0.00065999,120]
[340756129,1729779080245,-455.48277207,0.00065999,120]
[340756130,1729779080255,-44.51722793,0.00065999,120]
[340756131,1729779080379,-500.0,0.00065205,120]
[340756132,1729779080389,-2575.0,0.00065205,120]
[340756133,1729779080400,-274.58,0.00065205,120]
[340756134,1729779080410,-480.44521014,0.00065205,120]
[340756135,1729779080426,-19.55478986,0.00065205,120]
[340756136,1729779080436,-2849.58,0.00065205,120]
[340756137,1729779080535,-500.0,0.00065205,120]
[340756138,1729779080546,-2849.58,0.00065205,120]
[340756139,1729779080555,-2849.58,0.00065205,120]
[340756140,1729779080565,-500.0,0.00065205,120]
[340756141,1729779080575,-2822.91277207,0.00065999,120]
[340756142,1729779080584,-2867.43,0.00065999,120]
[340756143,1729779080593,-2867.43,0.00065999,120]
[340756144,1729779080602,-2628.34417855,0.00065999,120]
[340756145,1729779080624,-239.08582145,0.00065999,120]
[340756146,1729779080638,-2867.61537314,0.00065999,120]
[340756147,1729779080648,-947.42772558,0.00065999,120]
[340756148,1729779080659,-400.57,0.00065999,120]
[340756149,1729779080670,-285.22668101,0.00065999,120]
[340756150,1729779080682,-1346.51356479,0.00065999,120]
[340756151,1729779080693,-333.39202862,0.00065999,120]
[340756152,1729779080703,-98.6652193,0.00065999,120]
[340756153,1729779080714,-3214.4647807,0.00065999,120]
[340756154,1729779080724,-3313.13,0.00065999,120]
[340756155,1729779080733,-3313.13,0.00065999,120]
[340756156,1729779080742,-3313.13,0.00065999,120]
[340756157,1729779080751,-3313.13,0.00065999,120]
[340756158,1729779080761,-3313.13,0.00065999,120]
[340756159,1729779080770,-3313.13,0.00065999,120]
[340756160,1729779080780,-3313.17484987,0.00065999,120]
[340756161,1729779080789,-570.74276544,0.00065999,120]
[340756162,1729779080801,-776.22723456,0.00065999,120]
[340756163,1729779080811,-75.95386313,0.00065999,120]
[340756164,1729779080822,-1271.01613687,0.00065999,120]
[340756165,1729779080831,-1295.27262652,0.00065999,120]
[340756166,1729779080851,-2849.58,0.00065205,120]
[340756167,1729779080860,-520.62737348,0.00065999,120]
[340756168,1729779080870,-1815.9,0.00065999,120]
[340756169,1729779080879,-1815.9,0.00065999,120]
[340756170,1729779080889,-1815.9,0.00065999,120]
[340756171,1729779080899,-1815.9,0.00065999,120]
[340756172,1729779080909,-655.78926021,0.00065999,120]
[340756173,1729779080920,-1160.11073979,0.00065999,120]
[340756174,1729779080930,-1815.9,0.00065999,120]
[340756175,1729779080939,-1815.9,0.00065999,120]
[340756176,1729779080949,-1816.06083424,0.00065999,120]
[340756177,1729779080959,-500.0,0.00065999,120]
[340756178,1729779080968,-500.0,0.00065999,120]
[340756179,1729779080978,-2469.01,0.00065999,120]
[340756180,1729779080987,-2469.01,0.00065999,120]
[340756181,1729779080996,-1068.95514197,0.00065999,120]
[340756182,1729779081008,-1400.05485803,0.00065999,120]
[340756183,1729779081017,-2469.01,0.00065999,120]
[340756184,1729779081027,-2469.01,0.00065999,120]
[340756185,1729779081038,-2469.01,0.00065999,120]
[340756186,1729779081048,-500.0,0.00065999,120]
[340756187,1729779081057,-2469.01,0.00065999,120]
[340756188,1729779081066,-500.0,0.00065999,120]
[340756189,1729779081076,-2469.01,0.00065999,120]
[340756190,1729779081085,-415.00534429,0.00065999,120]
[340756191,1729779081095,-2469.11,0.00065999,120]
[340756192,1729779081104,-500.0,0.00065999,120]
[340756193,1729779081114,-500.0,0.00065999,120]
[340756194,1729779081124,-500.0,0.00065999,120]
[340756195,1729779081133,-500.0,0.00065999,120]
[340756196,1729779081143,-500.0,0.00065999,120]
[340756197,1729779081153,-500.0,0.00065999,120]
[340756198,1729779081162,-548.61,0.00065999,120]
[340756199,1729779081172,-548.61,0.00065999,120]
[340756200,1729779081182,-548.61,0.00065999,120]
[340756201,1729779081192,-548.61,0.00065999,120]
[340756202,1729779081201,-500.0,0.00065999,120]
[340756203,1729779081211,-548.61,0.00065999,120]
[340756204,1729779081220,-500.0,0.00065999,120]
[340756205,1729779081230,-548.61,0.00065999,120]
[340756206,1729779081239,-500.0,0.00065999,120]
[340756207,1729779081249,-548.61,0.00065999,120]
[340756208,1729779081259,-548.61,0.00065999,120]
[340756209,1729779081268,-500.0,0.00065999,120]
[340756210,1729779081280,-548.79030122,0.00065999,120]
[340756211,1729779081289,-500.0,0.00065999,120]
[340756212,1729779081299,-500.0,0.00065999,120]
[340756213,1729779081308,-500.0,0.00065999,120]
[340756214,1729779081317,-397.67172146,0.00065999,120]
[340756215,1729779081328,-679.23,0.00065999,120]
[340756216,1729779081343,-679.23,0.00065999,120]
[340756217,1729779081352,-3897.39,0.00065999,120]
[340756218,1729779081362,-1273.35801377,0.00065999,120]
[340756219,1729779081436,-4.47198623,0.00065999,120]
[340756220,1729779081445,-3897.39,0.00065999,120]
[340756221,1729779081455,-1277.83,0.00065999,120]
[340756222,1729779081464,-500.0,0.00065999,120]
[340756223,1729779081473,-1277.83,0.00065999,120]
[340756224,1729779081483,-223.44069588,0.00065999,120]
[340756225,1729779081492,-1277.83,0.00065999,120]
[340756226,1729779081501,-1277.83,0.00065999,120]
[340756227,1729779081510,-2848.21,0.00065999,120]
[340756228,1729779081520,-1277.83,0.00065999,120]
[340756229,1729779081530,-2425.74370307,0.00065999,120]
[340756230,1729779081542,-422.46629693,0.00065999,120]
[340756231,1729779081551,-34.48378642,0.00065999,120]
[340756235,1729779909227,-177.41470758,0.00014,2]
[340756237,1729780002022,150.0,0.00012666,2]
[340756238,1729780002043,150.0,0.00012666,2]
[340756239,1729780002067,150.0,0.00012666,2]
[340756240,1729780002088,150.0,0.00012666,2]
[340756241,1729780002109,295.99061294,0.00012666,2]
[340756242,1729780002130,150.0,0.00012666,2]
[340756243,1729780002159,538.68240446,0.00012666,2]
[340756244,1729780039591,-193.73195261,0.00013907,2]
[340756245,1729780097994,150.0,0.00012899,2]
[340756246,1729780098016,150.0,0.00012899,2]
[340756247,1729780098039,377.41470758,0.00012899,2]
[340756248,1729780113413,150.0,0.000129,2]
[340756249,1729780113437,150.0,0.000129,2]
[340756250,1729780113460,150.0,0.000129,2]
[340756252,1729780148114,-2711.42441211,0.00013907,2]
[340756253,1729780169083,-3312.38408889,0.00013907,2]
[340756254,1729780169102,-394.07,0.0001399,3]
[340756255,1729780169122,-303.10569455,0.00013999,2]
[340756256,1729780169143,-500.0,0.00013999,2]
[340756257,1729780169162,-500.0,0.00013999,2]
[340756258,1729780169186,-500.0,0.00013999,2]
[340756259,1729780169206,-500.0,0.00013999,2]
[340756260,1729780169227,-500.0,0.00013999,2]
[340756261,1729780169246,-500.0,0.00013999,2]
[340756262,1729780169266,-260.91069815,0.00013999,2]
[340756263,1729780169284,-150.0,0.00013999,2]
[340756264,1729780169306,-155670.53558746,0.00014,2]
[340756281,1729780232202,-251.89217282,0.00013895,2]
[340756282,1729780232211,-197.03,0.0001399,3]
[340756283,1729780232220,-132873.58897817,0.0001399,2]
[340756284,1729780232229,-591.12,0.0001399,3]
[340756285,1729780232238,-542384.03268738,0.00014,2]
[340756288,1729780238456,-1818.31649871,0.00014,2]
[340756289,1729780238705,-5926.41187172,0.00014,2]
[340756290,1729780238716,-4921.65527026,0.00014,2]
[340756293,1729780240464,-10484.6818,0.00014,2]
[340756294,1729780240552,-2360.59773962,0.00014,2]
[340756309,1729780243254,-788.14,0.0001399,3]
[340756312,1729780243266,-565.76868451,0.00014,2]
[340756318,1729780243322,-8957.44776981,0.00014,2]
[340756335,1729780243497,-5947.66301774,0.00014,2]
[340756338,1729780243515,-339.27219,0.00014,2]
[340756358,1729780246278,-677.918,0.00014,2]
[340756360,1729780246508,-6781.39475407,0.00014,2]
[340756378,1729780247357,-150.0,0.00014,2]
[340756379,1729780248095,-150.0,0.00014,2]
[340756380,1729780248723,-150.0,0.00014,2]
[340756381,1729780249406,-150.0,0.00014,2]
[340756382,1729780250052,-150.0,0.00014,2]
[340756383,1729780250737,-150.0,0.00014,2]
[340756384,1729780251299,-150.0,0.00014,2]
[340756385,1729780252080,-222.58529242,0.0001399,3]
[340756386,1729780252599,-166.89937352,0.0001399,3]
[340756387,1729780280209,-150.0,0.00013807,2]
[340756388,1729780280924,-150.0,0.00013807,2]
[340756389,1729780282275,150.0,0.0001,2]
[340756390,1729780282302,100.0,0.0001,2]
[340756391,1729780292027,150.0,0.00012,2]
[340756392,1729780292048,150.0,0.00012,2]
[340756393,1729780302372,-41.153,0.00013807,2]
[340756394,1729780302396,-4.57533406,0.0001399,3]
[340756395,1729780302422,-619954.27166594,0.00014,2]
[340756396,1729780364254,-275.0,0.00013999,2]
[340756397,1729780364282,-31725.0,0.00014,2]
[340756404,1729780808301,1465.27,0.00015369,7]
[340756405,1729780808610,534.73,0.00015643,8]
[340756406,1729780810925,150.0,0.00013418,2]
[340756407,1729780810947,100.0,0.00013418,2]
[340756411,1729780903005,200.0,0.00013464,2]
[340756412,1729780930700,150.0,0.00013465,2]
[340756413,1729780942139,150.0,0.00011808,2]
[340756414,1729780942161,150.0,0.00011808,2]
[340756415,1729780942183,62.06,0.00011808,2]
[340756416,1729780943474,-187.94,0.00013676,2]
[340756417,1729780975244,-150.0,0.00013636,2]
[340756418,1729780975753,-150.0,0.00013636,2]
[340756419,1729780976512,-150.0,0.00013636,2]
[340756420,1729780977350,-150.0,0.00013636,2]
[340756421,1729780978000,-150.0,0.00013636,2]
[340756422,1729780978451,-150.0,0.00013636,2]
[340756423,1729780979591,-150.0,0.00013636,2]
[340756424,1729780980336,-150.0,0.00013636,2]
[340756425,1729780981123,-150.0,0.00013636,2]
[340756426,1729780981675,-150.0,0.00013636,2]
[340756427,1729780982331,-150.0,0.00013636,2]
[340756428,1729780982995,-150.0,0.00013636,2]
[340756429,1729780983591,-150.0,0.00013636,2]
[340756430,1729780984196,-150.0,0.00013636,2]
[340756431,1729780984965,150.0,0.00013576,2]
[340756432,1729780984989,2504.83616482,0.00013576,2]
[340756433,1729780985316,-150.0,0.00013636,2]
[340756434,1729780985564,-150.0,0.00013636,2]
[340756435,1729780986264,-150.0,0.00013636,2]
[340756436,1729780987021,-150.0,0.00013636,2]
[340756437,1729780988223,-150.0,0.00013636,2]
[340756438,1729780988937,-150.0,0.00013636,2]
[340756439,1729780989625,-150.0,0.00013636,2]
[340756440,1729780990340,-227.41470758,0.00013636,2]
[340756441,1729780992041,-179.09123942,0.00013636,2]
[340756442,1729780992627,-150.0,0.00013636,2]
[340756443,1729780993388,-150.0,0.00013636,2]
[340756444,1729780994022,-150.0,0.00013636,2]
[340756445,1729780994783,-150.0,0.00013636,2]
[340756446,1729781006180,1729.06672314,0.00013442,2]
[340756447,1729781016036,-150.0,0.00013442,2]
[340756448,1729781016741,-150.0,0.00013442,2]
[340756449,1729781017275,-150.0,0.00013442,2]
[340756450,1729781018006,-150.0,0.00013442,2]
[340756451,1729781018556,-150.0,0.00013442,2]
[340756452,1729781019730,-150.0,0.00013442,2]
[340756453,1729781081378,150.0,0.00013182,2]
[340756454,1729781081400,150.0,0.00013182,2]
[340756455,1729781081422,150.0,0.00013182,2]
[340756456,1729781081444,150.0,0.00013182,2]
[340756457,1729781081465,150.0,0.00013182,2]
[340756458,1729781081486,150.0,0.00013182,2]
[340756459,1729781081512,150.0,0.00013182,2]
[340756460,1729781081534,150.0,0.00013182,2]
[340756461,1729781081557,150.0,0.00013182,2]
[340756462,1729781081579,150.0,0.00013182,2]
[340756463,1729781081608,243.56,0.00013182,2]
[340756464,1729781131143,150.0,0.00013091,2]
[340756465,1729781131166,50.0,0.00013091,2]
[340756466,1729781178554,150.0,0.00013182,2]
[340756467,1729781178580,100.0,0.00013182,2]
[340756468,1729781193867,150.0,0.00013081,2]
[340756469,1729781193890,100.0,0.00013081,2]
[340756470,1729781239689,150.0,0.00013185,2]
[340756471,1729781239711,150.0,0.00013185,2]
[340756472,1729781239732,36.55,0.00013185,2]
[340756473,1729781244255,150.0,0.00013096,2]
[340756474,1729781244286,850.0,0.00013096,2]
[340756475,1729781250110,-150.32,0.00013237,2]
[340756476,1729781250133,-150.32,0.00013303,2]
[340756477,1729781250158,-1406.25327686,0.00013442,2]
[340756478,1729781250180,-367.29677838,0.00013542,2]
[340756479,1729781314189,906.44,0.00013111,2]
[340756480,1729781374090,-500.0,0.00013055,2]
[340756481,1729781374112,-173.05,0.00013061,2]
[340756482,1729781374133,-165.59,0.00013061,2]
[340756483,1729781374154,-300.0,0.0001311,2]
[340756484,1729781374175,-22993.56,0.00013111,2]
[340756485,1729781374194,-1852.42,0.00013221,2]
[340756486,1729781374216,-14664.14889785,0.00013307,2]
[340756497,1729781432376,-1021.18174766,0.00013207,2]
[340756499,1729781432386,-156.35,0.00013307,2]
[340756501,1729781432396,-250.0,0.00013315,2]
[340756503,1729781432406,-2253.63594796,0.00013584,2]
[340756505,1729781432417,-700.0,0.00013584,2]
[340756506,1729781432428,-11233.36405204,0.00013584,2]
[340756507,1729781432438,-127.294053,0.00013636,2]
[340756508,1729781432447,-50000.0,0.00013636,2]
[340756509,1729781432456,-720.65,0.00013642,2]
[340756510,1729781432465,-408.26,0.00013699,2]
[340756511,1729781432475,-200.0,0.00013699,2]
[340756512,1729781432486,-165.59,0.00013714,2]
[340756513,1729781432495,-150.0,0.0001372,2]
[340756514,1729781432504,-299.99,0.00013721,2]
[340756515,1729781432513,-2241.76,0.00013721,2]
[340756516,1729781432523,-150.0,0.00013863,2]
[340756517,1729781432533,-297.228,0.0001389,2]
[340756518,1729781432542,-2889.63883065,0.000139,2]
[340756519,1729781432552,-632.06,0.000139,2]
[340756520,1729781432562,-3446.58,0.000139,2]
[340756521,1729781432571,-604.70260146,0.000139,2]
[340756522,1729781432580,-206.18,0.0001398,3]
[340756523,1729781432589,-618.54,0.0001398,3]
[340756524,1729781432599,-9993.66898163,0.0001398,2]
[340756525,1729781432609,-1212.8948282,0.00013989,5]
[340756526,1729781432619,-199.3795548,0.00013989,5]
[340756527,1729781432629,-500.0,0.00013989,2]
[340756528,1729781432638,-405.48345304,0.00013989,2]
[340756529,1729781432650,-500.0,0.00013989,2]
[340756530,1729781432660,-500.0,0.00013989,2]
[340756531,1729781432670,-500.0,0.00013989,2]
[340756532,1729781432679,-500.0,0.00013989,2]
[340756533,1729781432689,-500.0,0.00013989,2]
[340756535,1729781432699,-500.0,0.00013989,2]
[340756537,1729781432709,-500.0,0.00013989,2]
[340756539,1729781432718,-159.99512284,0.00013989,2]
[340756541,1729781432730,-229854.386577,0.0001399,2]
[340756543,1729781432740,-184589.95426444,0.0001399,2]
[340756546,1729781432752,-1628.4376726,0.0001399,2]
[340756549,1729781432764,-6793.082792,0.0001399,2]
[340756552,1729781432775,-18373.55279442,0.0001399,2]
[340756555,1729781432787,-667.83,0.0001399,2]
[340756570,1729781432852,-1333.06,0.0001399,2]
[340756573,1729781432867,-31214.33827054,0.0001399,2]
[340756575,1729781432881,-232.23014121,0.0001399,2]
[340756577,1729781432891,-1212.8948282,0.00013998,5]
[340756579,1729781432901,-1212.89482821,0.00013999,5]
[340756581,1729781432911,-80530.38116601,0.00014,2]
[340756583,1729781432923,-1555.63554671,0.00014,2]
[340756585,1729781432935,-6324.17322919,0.00014,2]
[340756588,1729781432946,-3485.67194309,0.00014,2]
[340756595,1729781433011,-2039.01,0.00014,2]
[340756597,1729781433027,-377.25570685,0.00014,2]
[340756600,1729781433040,-2397.6432795,0.00014,2]
[340757101,1729781438469,-500.0,0.00013973,2]
[340757103,1729781438479,-11537.56910238,0.00014,2]
[340757105,1729781438496,-601.98595797,0.00014,2]
[340757107,1729781438507,-7861.00831661,0.00014,2]
[340757110,1729781438518,-792.98054725,0.00014,2]
[340757112,1729781438530,-666.10336293,0.00014,2]
[340757114,1729781438546,-1056.81499998,0.00014,2]
[340757117,1729781438558,-8200.13663265,0.00014,2]
[340757119,1729781438569,-3262.65949411,0.00014,2]
[340757121,1729781438580,-1809.30749955,0.00014,2]
[340757123,1729781438591,-3501.23282329,0.00014,2]
[340757125,1729781438603,-122536.5581103,0.00014,2]
[340757128,1729781438619,-500.0,0.00014,2]
[340757130,1729781438630,-12964.33084339,0.00014,2]
[340757132,1729781438642,-12503.56711931,0.00014,2]
[340757135,1729781438658,-25839.79521877,0.00014,2]
[340757137,1729781438669,-46713.29311545,0.00014,2]
[340757139,1729781438681,-17559.15279119,0.00014,2]
[340757173,1729781439029,-2004.6982593,0.00014,2]
[340757176,1729781439040,-619.43967333,0.00014,2]
[340757178,1729781439052,-6005.18116868,0.00014,2]
[340757238,1729781439634,-1140.474,0.00014,2]
[340757240,1729781439646,-580.70497735,0.00014,2]
[340757242,1729781439664,-1353.58223,0.00014,2]
[340757245,1729781439675,-3735.142385,0.00014,2]
[340757247,1729781439687,-65066.39327239,0.00014,2]
[340757250,1729781439706,-41795.4502247,0.00014,2]
[340757252,1729781439717,-253.34417042,0.00014,2]
[340757254,1729781439729,-2238.99168339,0.00014,2]
[340757256,1729781439748,-1084.4175613,0.00014,2]
[340757258,1729781439759,-1868.0662,0.00014,2]
[340757261,1729781439770,-3151.88708974,0.00014,2]
[340757263,1729781439781,-1743.66113836,0.00014,2]
[340757267,1729781439809,-592769.5888325,0.00014,2]
[340757269,1729781439819,-350.0,0.00014,2]
[340757270,1729781439831,-362.06,0.00014072,2]
[340757272,1729781439842,-181.15,0.00014277,2]
[340757274,1729781439852,-220.97,0.00014329,2]
[340757276,1729781439862,-165.59,0.00014367,2]
[340757278,1729781439871,-8434.52182814,0.000145,3]
[340757280,1729781439881,-214.89,0.00014532,2]
[340757282,1729781439891,-173.05,0.00014693,2]
[340757284,1729781439900,-1000.0,0.00014733,2]
[340757286,1729781439910,-255.0,0.00014832,2]
[340757288,1729781439919,-259.44508944,0.0001492,2]
[340757290,1729781439929,-507.72510375,0.00014973,2]
[340757292,1729781439938,-300.77151253,0.00014973,2]
[340757294,1729781439947,-500.0,0.00014973,2]
[340757296,1729781439957,-500.0,0.00014973,2]
[340757298,1729781439967,-983452.62751177,0.00015,2]
[340757300,1729781439976,-165.59,0.0001502,2]
[340757302,1729781439987,-481.79837513,0.00015342,2]
[340757304,1729781440002,-157.38,0.00015342,2]
[340757306,1729781440012,-163.27,0.00015342,2]
[340757308,1729781440021,-155.79,0.00015342,2]
[340757310,1729781440031,-156.18,0.00015342,2]
[340757312,1729781440042,-412.36,0.0001535,3]
[340757314,1729781440051,-2000.0,0.00015643,2]
[340757316,1729781440061,-200.0,0.00015643,2]
[340757318,1729781440071,-200.0,0.00015643,2]
[340757320,1729781440081,-165.59,0.00015673,2]
[340757322,1729781440090,-2000.0,0.00015799,2]
[340757324,1729781440100,-200.0,0.00015799,2]
[340757326,1729781440110,-200.0,0.00015799,2]
[340757329,1729781440119,-22193.07432508,0.000159,2]
[340757347,1729781440267,-200.0,0.00015957,2]
[340757350,1729781440278,-200.0,0.00015957,2]
[340757352,1729781440288,-345.0,0.00016039,2]
[340757354,1729781440298,-200.0,0.00016117,2]
[340757356,1729781440307,-200.0,0.00016117,2]
[340757357,1729781440317,-200.0,0.00016278,2]
[340757360,1729781440329,-200.0,0.00016278,2]
[340757362,1729781440339,-173.05,0.00016326,2]
[340757363,1729781440348,-362.06,0.00016336,2]
[340757367,1729781440358,-1000.0,0.00016342,2]
[340757369,1729781440367,-1000.0,0.00016342,2]
[340757372,1729781440377,-1000.0,0.0001637,2]
[340757374,1729781440387,-172.63,0.00016754,2]
[340757377,1729781440397,-620.0,0.000178,2]
[340757379,1729781440406,-173.05,0.00017958,2]
[340757382,1729781440415,-163.0436472,0.00018,2]
[340757385,1729781440424,-1000.0,0.00018007,2]
[340757386,1729781440434,-173.93540049,0.00018346,2]
[340757388,1729781440444,-1743.56,0.00018454,2]
[340757390,1729781440454,-362.06,0.000186,2]
[340757392,1729781440464,-200.0,0.00019178,2]
[340757394,1729781440474,-176.97,0.00019178,2]
[340757396,1729781440484,-173.05,0.00019591,2]
[340757398,1729781440498,-1000.0,0.00019644,2]
[340757400,1729781440507,-12849.42421248,0.0002,2]
[340757402,1729781440517,-362.06,0.00020863,2]
[340757404,1729781440526,-220.97,0.00021493,2]
[340757406,1729781440535,-174.9,0.00021918,2]
[340757408,1729781440544,-362.06,0.00023127,2]
[340757410,1729781440553,-168.66,0.00023732,2]
[340757412,1729781440562,-1232.61471279,0.00024931,3]
[340757413,1729781440571,-5930.06382919,0.0002495,2]
[340757415,1729781440581,-362.06,0.00025391,2]
[340757417,1729781440591,-223.27965881,0.00027297,2]
[340757419,1729781440601,-500.0,0.00027397,7]
[340757421,1729781440612,-150.0,0.00027397,2]
[340757423,1729781440622,-362.06,0.00027655,2]
[340757425,1729781440633,-157.38,0.00028858,2]
[340757427,1729781440643,-362.06,0.00029919,2]
[340757429,1729781440656,-10986.59999584,0.0003,2]
[340757431,1729781440666,-362.06,0.00032183,2]
[340757433,1729781440676,-362.06,0.00034447,2]
[340757435,1729781440685,-150.0,0.00034548,10]
[340757437,1729781440696,-1000.0,0.00035616,30]
[340757439,1729781440705,-176.97,0.00035616,120]
[340757441,1729781440716,-362.06,0.00036711,2]
[340757443,1729781440728,-1000.0,0.00036986,30]
[340757445,1729781440738,-500.0,0.00037548,10]
[340757447,1729781440750,-929.68272506,0.000379,2]
[340757449,1729781440759,-297.228,0.00037918,50]
[340757451,1729781440768,-1000.0,0.00038356,30]
[340757453,1729781440778,-1844.61391261,0.0003888,90]
[340757455,1729781440787,-3374.91619463,0.000389,2]
[340757457,1729781440797,-362.06,0.00038975,2]
[340757459,1729781440806,-153.81388019,0.00039,120]
[340757461,1729781440816,-1000.0,0.00039726,30]
[340757463,1729781440826,-181.06567917,0.000399,8]
[340757465,1729781440835,-293.30319025,0.0004,120]
[340757467,1729781440845,-334.81562084,0.0004,30]
[340757469,1729781440854,-314.36952925,0.0004,120]
[340757471,1729781440865,-330.5209656,0.0004,120]
[340757473,1729781440875,-8505.51676404,0.0004,30]
[340757475,1729781440884,-1000.0,0.00041095,120]
[340757477,1729781440895,-157.0,0.00041096,2]
[340757479,1729781440904,-3468.34856207,0.000411,2]
[340757481,1729781440914,-362.06,0.00041238,2]
[340757483,1729781440924,-259.44508943,0.0004191,2]
[340757485,1729781440934,-338.76,0.00042075,7]
[340757487,1729781440944,-338.76,0.00042075,7]
[340757489,1729781440953,-157.38,0.00042374,2]
[340757491,1729781440963,-1000.0,0.00042465,120]
[340757493,1729781440972,-155.07672209,0.00042867,120]
[340757495,1729781440982,-534.465177,0.00042867,2]
[340757497,1729781440994,-3999.999999,0.00042867,2]
[340757499,1729781441003,-362.06,0.00043502,2]
[340757501,1729781441012,-1000.0,0.00043835,120]
[340757503,1729781441022,-3352.5,0.00044151,7]
[340757505,1729781441032,-3352.5,0.00044151,7]
[340757507,1729781441043,-560.0,0.00044959,7]
[340757509,1729781441052,-560.0,0.00044959,7]
[340757511,1729781441062,-600.0,0.00045,120]
[340757513,1729781441073,-1000.0,0.00045205,120]
[340757515,1729781441083,-150.0,0.00045589,10]
[340757517,1729781441093,-242.8,0.00045625,7]
[340757519,1729781441102,-242.8,0.00045625,7]
[340757521,1729781441112,-362.06,0.00045766,2]
[340757523,1729781441122,-1000.0,0.00046575,120]
[340757525,1729781441131,-182.24,0.00046855,7]
[340757527,1729781441141,-182.24,0.00046855,7]
[340757529,1729781441150,-1000.0,0.00047945,120]
[340757531,1729781441160,-362.06,0.0004803,2]
[340757533,1729781441170,-45000.0,0.00049,30]
[340757535,1729781441179,-1000.0,0.00049315,120]
[340757536,1729781441189,-10614.0,0.000501,120]
[340757539,1729781441199,-362.06,0.00050294,2]
[340757541,1729781441209,-1000.0,0.00050684,120]